Cogmind - Beta 10.2 @@@ ROGUE MODE // 2021.01.10 @ 10:54:42 Player: Demise Result: Self-destructed Performance ------------- Evolutions (2) 1000 Regions Visited (7) 1400 Robots Destroyed (121) 605 Value Destroyed (2431) 2431 Prototype IDs (36) 720 Alien Tech Used (0) 0 Bonus (597) 597 TOTAL SCORE: 6753 Bonus ------- High Alert Combat Kills 58 Follower Combat Kills 319 Aligned with FarCom 300 Friendly Fire -80 Cogmind --------- Core Integrity 420/550 Matter 298/300 Energy 280/280 System Corruption 0% Temperature Cool (0) Movement Walking (130) Ox1 Location -8/Materials Parts ------- > --- POWER (1) -------- Heavy Ion Engine > --- PROPULSION (2) --- Potential Leg Potential Leg > --- UTILITY (6) ------ Humpback Improved Signal Interpreter Hardened Medium Armor Plating > --- WEAPON (2) ------- Light Assault Rifle > --- INVENTORY (24) --- Makeshift Power Source Makeshift Power Source Makeshift Power Source Advanced Myomer Leg Improved Flight Unit Improved Flight Unit High-capacity Storage Unit High-capacity Storage Unit High-capacity Storage Unit Humpback Humpback Humpback High-capacity Matter Pod (81) Gravity Neutralizing Apparatus Experimental Sensor Array Advanced Transmission Jammer Hardened Medium Armor Plating System Purifier Decoy Drone Bay (16/16) Mini Grenade Launcher Peak State ------------ > --- POWER ------------ Light Neutrino Core > --- PROPULSION ------- Potential Leg Potential Leg > --- UTILITY ---------- Humpback Humpback Signal Interpreter Advanced Recalibrator > --- WEAPON ----------- Heavy Assault Rifle Autogun > --- INVENTORY -------- Heavy Ion Engine Makeshift Power Source Makeshift Power Source Makeshift Power Source Makeshift Power Source Advanced Myomer Leg Improved Flight Unit Improved Flight Unit Improved Flight Unit Improved Flight Unit Improved Flight Unit High-capacity Storage Unit High-capacity Storage Unit High-capacity Storage Unit High-capacity Storage Unit High-capacity Storage Unit Humpback Humpback Humpback High-capacity Matter Pod Gravity Neutralizing Apparatus Gravity Neutralizing Apparatus Experimental Sensor Array Experimental Targeting Computer Advanced Transmission Jammer Medium Armor Plating Medium Armor Plating Reactive Plating EX Chip 1 Hacking Suite EX Chip 2 System Purifier Long-range Tractor Beam Decoy Drone Bay 8R-AWN's Boregun 8R-AWN's Boregun Mini Grenade Launcher Mining Laser Longsword +1 Deploy-a-Sentry [Rating: 60] Favorites ----------- Power Heavy Ion Engine Engine Heavy Ion Engine Power Core Light Neutrino Core Propulsion Light Treads Treads Light Treads Leg Potential Leg Wheel Armored Wheel Utility High-capacity Storage Unit Device Experimental Sensor Array Storage High-capacity Storage Unit Processor Signal Interpreter Protection Hardened Light Armor Plating Weapon Heavy Assault Rifle Ballistic Gun Heavy Assault Rifle Launcher Mini Grenade Launcher Special Weapon Mining Laser Slashing Weapon Longsword +1 Build | -11 -10 -10 -9 -9 -9 -8 -8 ------- Run | Scr Mat Min Mat Min Exi Min Mat Slots Evolved 4 | . . . 2 . . . 2 Power . | . . . . . . . . Propulsion . | . . . . . . . . Utility 4 | . . . 2 . . . 2 Weapon . | . . . . . . . . Parts Attached 127 | 7 16 9 43 6 26 8 12 Power 12 | 1 1 . 7 . 1 . 2 Engine 11 | 1 1 . 7 . . . 2 Core 1 | . . . . . 1 . . Reactor . | . . . . . . . . Propulsion 23 | 2 2 2 11 2 4 . . Treads 16 | 2 2 . 9 2 1 . . Leg 5 | . . 2 . . 3 . . Wheel 2 | . . . 2 . . . . Hover . | . . . . . . . . Flight . | . . . . . . . . Utility 46 | 2 6 2 12 3 14 . 7 Device 7 | 1 . . . . 4 . 2 Storage 18 | 1 4 2 5 1 5 . . Processor 6 | . 2 . 1 1 . . 2 Hackware . | . . . . . . . . Protection 15 | . . . 6 1 5 . 3 Artifact . | . . . . . . . . Weapon 46 | 2 7 5 13 1 7 8 3 Energy Gun . | . . . . . . . . Energy Cannon . | . . . . . . . . Ballistic Gun 34 | 2 4 3 12 1 4 5 3 Ballistic Cannon . | . . . . . . . . Launcher 5 | . . 1 . . 2 2 . Special Weapon 6 | . 3 1 1 . . 1 . Impact Weapon . | . . . . . . . . Slashing Weapon 1 | . . . . . 1 . . Piercing Weapon . | . . . . . . . . Special Melee Weapon . | . . . . . . . . Unidentified Prototypes 7 | . . . . . 6 1 . Parts Lost 10 | . . 2 . 1 2 1 4 Power . | . . . . . . . . Propulsion 1 | . . 1 . . . . . Utility 3 | . . . . . 1 . 2 Weapon 6 | . . 1 . 1 1 1 2 Highest Loss Streak 2 | . . 1 . 1 1 1 2 Average Slot Usage (%) 92 | . 99 99 99 100 83 77 79 Engine 9 | . 14 14 10 11 7 . 5 Core 2 | . . . . . 3 11 3 Treads 16 | . 27 21 18 22 17 . . Leg 5 | . . 5 . . 4 22 18 Storage 25 | . 22 28 31 33 22 22 18 Processor 1 | . 4 . . . . . 8 Protection 6 | . . . 12 11 5 . 6 Ballistic Gun 21 | . 27 27 21 22 17 21 17 Naked Turns . | . . . . . . . . Heaviest Build 185 | 13 48 73 100 115 174 174 185 Greatest Support 60 | 40 40 40 40 40 60 60 60 Greatest Overweight (x) 6 | 1 1 3 6 2 5 2 3 Average Overweight (x) 1 | . . 1 2 2 2 2 2 Largest Inventory Capacity 44 | 6 16 20 26 28 44 44 44 Average Capacity 27 | 5 10 18 25 26 32 44 43 Most Carried 44 | 5 14 20 26 28 44 44 44 Average Carried 25 | 3 10 17 24 26 26 43 43 Final Capacity 44 | 6 16 20 26 28 44 44 24 Final Carried 44 | 5 14 20 26 28 44 43 24 Class Distribution -------------------- 78% | Hauler-Mutant 20% | Mutant Dominant Class ---------------- Mutant | -10/Materials Mutant | -10/Mines Hauler-Mutant | -9/Materials Hauler-Mutant | -9/Mines Hauler-Mutant | -9/Exiles Hauler-Mutant | -8/Mines Hauler-Mutant | -8/Materials Resources | -11 -10 -10 -9 -9 -9 -8 -8 ----------- Run | Scr Mat Min Mat Min Exi Min Mat Matter Collected 4311 | 398 468 387 1021 119 988 139 791 Remotely 289 | 289 . . . . . . . Salvage Created 3665 | 236 439 373 1117 82 460 191 767 Parts 304 | 23 38 41 83 10 52 17 40 Haulers Intercepted 7 | . 2 . 5 . . . . Recyclers Shooed 2 | . . 1 . . . . 1 Parts Field Recycled . | . . . . . . . . Retrieved Matter . | . . . . . . . . Parts Self-Destructed . | . . . . . . . . Prevented . | . . . . . . . . Kills | -11 -10 -10 -9 -9 -9 -8 -8 ------- Run | Scr Mat Min Mat Min Exi Min Mat Combat Hostiles Destroyed 79 | . 9 19 20 6 1 9 15 Melee 1 | . . . . . 1 . . Guns 70 | . 9 15 20 6 . 5 15 AOE 8 | . . 4 . . . 4 . Classes Destroyed 15 | 3 4 . 5 1 2 . . Worker 5 | 2 . . 3 . . . . Builder 3 | . . . 2 . . . 1 Tunneler 6 | 5 . . . . . 1 . Hauler 7 | . 2 . 5 . . . . Recycler 2 | 1 . . . . . . 1 Mechanic 1 | . . . 1 . . . . Operator 2 | . . . 1 . . . 1 Turret 1 | . . . . . 1 . . Watcher 5 | . 3 . 1 . . . 1 Swarmer 37 | . 3 15 7 5 . 3 4 Grunt 29 | . 6 4 7 . . 5 7 Brawler 3 | . . . 1 . . 1 1 Sentry 8 | . . . 5 . . . 3 Demolisher 1 | . . . . 1 . . . Zionite 8 | . . . . . 8 . . Best Kill Streak 8 | 4 3 4 5 2 5 3 8 Combat Bots Only 5 | . 3 4 5 2 1 3 5 Max Kills in Single Turn 3 | 1 1 3 2 2 1 2 1 Gunslinging 1 | . . . . 1 . . . Exploded 3 | . . 3 . . . 2 . Melee 1 | . . . . . 1 . . Uniques/NPCs Destroyed 4 | . . . . . 4 . . EX-DEC (-9/Exiles) EX-HEX (-9/Exiles) EX-BIN (-9/Exiles) 8R-AWN (-9/Exiles) Combat | -11 -10 -10 -9 -9 -9 -8 -8 -------- Run | Scr Mat Min Mat Min Exi Min Mat Damage Taken 5256 | . 390 601 1064 727 534 542 1398 Core 557 | . 35 76 92 97 63 64 130 Absorbed by Shields . | . . . . . . . . Core Remaining (%) 58 | 100 . 55 . . . 21 . Volleys Fired 412 | 15 50 54 98 12 66 29 88 Largest 2 | 2 2 2 2 2 2 2 2 Hottest 100 | 40 100 100 100 46 46 100 53 Shots Fired 757 | 30 96 101 194 24 115 42 155 Gun 716 | 30 92 97 193 24 99 26 155 Cannon . | . . . . . . . . Launcher 31 | . . 2 . . 16 13 . Special 10 | . 4 2 1 . . 3 . Kinetic 716 | 30 92 97 193 24 99 26 155 Thermal 10 | . 4 2 1 . . 3 . Explosive 31 | . . 2 . . 16 13 . Electromagnetic . | . . . . . . . . Robot Hit Streak 16 | 7 14 12 11 7 16 12 12 Robot Miss Streak 4 | 1 4 4 4 3 3 4 4 Penetration Max . | . . . . . . . . Secondary Targets 10 | . 1 2 3 2 2 . . Max Gunslinging Chain 1 | . 1 1 1 1 1 . . Shots Hit Robots 508 | 19 59 60 132 14 90 19 115 Core Hits 204 | 11 24 26 46 7 35 18 37 Critical Hits 13 | . . . 3 1 3 2 4 Critical Kills 3 | . . . 1 . . 1 1 Critical Parts Destroyed 7 | . . . 2 . 1 1 3 Melee Attacks 24 | . . . . . 24 . . Impact . | . . . . . . . . Slashing 24 | . . . . . 24 . . Piercing . | . . . . . . . . Sneak Attacks . | . . . . . . . . Combat Hostiles . | . . . . . . . . Follow-up Attacks . | . . . . . . . . Damage Inflicted 9984 | 210 580 841 2054 279 3312 1041 1667 Guns 6650 | 210 580 667 1954 279 1071 235 1654 Cannons . | . . . . . . . . Explosions 1477 | . . 174 67 . 430 806 . Melee 1811 | . . . . . 1811 . . Ramming 46 | . . . 33 . . . 13 Kinetic 6650 | 210 580 667 1954 279 1071 235 1654 Thermal 67 | . . . 67 . . . . Explosive 1410 | . . 174 . . 430 806 . Electromagnetic . | . . . . . . . . Impact . | . . . . . . . . Slashing 1811 | . . . . . 1811 . . Piercing . | . . . . . . . . Highest Corruption 1 | . 1 1 1 1 1 . . Average Corruption 1 | . 1 1 1 1 1 . . Corruption Purged 1 | . . . . . 1 . . Effects 29 | . 1 6 3 4 15 . . Message Errors 16 | . 1 1 2 3 9 . . Energy Discharges 6 | . . . . . 6 . . Data Loss (minor) 4 | . . 2 1 1 . . . Targeting Errors 3 | . . 3 . . . . . Overload Shots . | . . . . . . . . Overflow Damage 317 | . . . 38 . 237 42 . Projectiles . | . . . . . . . . Explosions 80 | . . . 38 . . 42 . Melee 237 | . . . . . 237 . . Knockbacks . | . . . . . . . . Impact . | . . . . . . . . Kinetic . | . . . . . . . . Secondary . | . . . . . . . . Self-Inflicted Damage 113 | . . . 66 . . 41 6 Shots 2 | . . . 1 . . 1 . Rammed 3 | . . . 1 . . . 2 Targets Rammed 4 | . . . 1 . . . 3 Kicked 1 | . . . . . . . 1 Crushed . | . . . . . . . . Highest Temperature 136 | . 40 40 32 12 136 60 18 Average Temperature 18 | . 12 13 7 9 39 14 4 Received Heat Transfer 1491 | . 132 135 261 . . 234 729 Siege Activations . | . . . . . . . . Robots Corrupted . | . . . . . . . . Combat Hostiles . | . . . . . . . . Parts Fried . | . . . . . . . . Impact Corruptions . | . . . . . . . . Robots Melted . | . . . . . . . . Combat Hostiles . | . . . . . . . . Parts Melted . | . . . . . . . . Heat Transferred 50 | . . . 50 . . . . Parts Sabotaged . | . . . . . . . . Parts Stolen . | . . . . . . . . Parts Stripped . | . . . . . . . . Power Chain Reactions . | . . . . . . . . Missiles Intercepted . | . . . . . . . . Alert | -11 -10 -10 -9 -9 -9 -8 -8 ------- Run | Scr Mat Min Mat Min Exi Min Mat Peak Influence 560 | 40 164 296 560 337 . 167 336 Initial 192 | . 26 27 71 192 . . 14 Average 192 | 18 65 116 373 185 . 30 109 Maximum Alert Level 2 | . . 1 2 1 . . 1 Low Security (%) 59 | 100 100 89 7 60 . 100 79 Level 1 24 | . . 10 46 39 . . 20 Level 2 15 | . . . 46 . . . . Level 3 . | . . . . . . . . Level 4 . | . . . . . . . . Level 5 . | . . . . . . . . High Security . | . . . . . . . . Max Security . | . . . . . . . . Squads Dispatched 8 | . 1 1 3 . . . 3 Investigation 6 | . 1 1 2 . . . 2 Extermination . | . . . . . . . . Reinforcement 2 | . . . 1 . . . 1 Assault . | . . . . . . . . Garrison . | . . . . . . . . Intercept . | . . . . . . . . Construction Impeded . | . . . . . . . . Haulers Reinforced . | . . . . . . . . Stealth | -11 -10 -10 -9 -9 -9 -8 -8 --------- Run | Scr Mat Min Mat Min Exi Min Mat Distress Signals 4 | . . . 1 . . . 3 Communications Jammed . | . . . . . . . . Distress Signals . | . . . . . . . . Times Spotted 168 | . 17 21 45 8 39 10 28 Peak Tracking Total 9 | . 3 4 5 4 9 3 6 Tactical Retreats 19 | . 2 2 . 1 5 1 8 Traps | -11 -10 -10 -9 -9 -9 -8 -8 ------- Run | Scr Mat Min Mat Min Exi Min Mat Traps Triggered 3 | . 1 . 2 . . . . Indirectly . | . . . . . . . . Trap Hack Attempts . | . . . . . . . . Triggered . | . . . . . . . . Disarmed . | . . . . . . . . Reprogrammed . | . . . . . . . . Reused 3 | . . . . . 3 . . Traps Extracted . | . . . . . . . . Installed 4 | . . . . . 4 . . Triggered . | . . . . . . . . Exploded 3 | . . . . . 3 . . Machines | -11 -10 -10 -9 -9 -9 -8 -8 ---------- Run | Scr Mat Min Mat Min Exi Min Mat Machines Disabled 10 | . . . 4 . 5 . 1 Max in Single Turn 2 | . . . 2 . 1 . 1 Machines Sabotaged . | . . . . . . . . Garrisons Compromised . | . . . . . . . . Overloaded Fab Kills . | . . . . . . . . Fab Network Shutdowns . | . . . . . . . . Hacking | -11 -10 -10 -9 -9 -9 -8 -8 --------- Run | Scr Mat Min Mat Min Exi Min Mat Machines Accessed 33 | . 9 2 15 1 2 . 4 Terminals 21 | . 7 2 9 . . . 3 Fabricators . | . . . . . . . . Repair Stations 3 | . 1 . 2 . . . . Recycling Units 3 | . 1 . 2 . . . . Scanalyzers 3 | . . . 2 . . . 1 Garrison Access . | . . . . . . . . Total Hacks 118 | . 34 7 57 1 2 . 17 Successful 71 | . 20 1 38 1 2 . 9 Failed 45 | . 13 5 19 . . . 8 Catastrophic 5 | . . 2 2 . . . 1 Database Lockouts 2 | . 1 1 . . . . . Manual 58 | . 16 7 30 . 1 . 4 Terminals 77 | . 27 7 35 . . . 8 Fabricators . | . . . . . . . . Repair Stations 15 | . 4 . 11 . . . . Recycling Units 8 | . 3 . 5 . . . . Scanalyzers 15 | . . . 6 . . . 9 Garrison Access . | . . . . . . . . Terminal Hacks 23 | . 8 1 9 1 2 . 2 Record 1 | . . . . . 1 . . Part Schematic 1 | . . . 1 . . . . Robot Analysis 6 | . 2 1 3 . . . . Prototype ID Bank 2 | . 2 . . . . . . Open Door 1 | . . . . 1 . . . Branch Access Points 1 | . . . 1 . . . . Terminal Index 2 | . . . 1 . . . 1 Repair Station Index 1 | . . . 1 . . . . Locate Traps 1 | . 1 . . . . . . Hauler Manifests 2 | . 1 . 1 . . . . Registered Components 1 | . 1 . . . . . . Zone Layout 3 | . 1 . 1 . . . 1 EX-Prototype ID Bank 1 | . . . . . 1 . . Fabricator Hacks . | . . . . . . . . Repair Station Hacks 14 | . 4 . 10 . . . . Scan Component 7 | . 2 . 5 . . . . Repair 7 | . 2 . 5 . . . . Recycling Unit Hacks 3 | . 1 . 2 . . . . Retrieve Components 3 | . 1 . 2 . . . . Scanalyzer 13 | . . . 6 . . . 7 Insert Component 6 | . . . 3 . . . 3 Analyze 7 | . . . 3 . . . 4 Garrison Access Hacks . | . . . . . . . . Unauthorized Hacks 18 | . 7 . 11 . . . . Terminals 15 | . 6 . 9 . . . . Track 2 | . . . 2 . . . . Assimilate 3 | . 2 . 1 . . . . Botnet 8 | . 4 . 4 . . . . Disrupt 1 | . . . 1 . . . . Operators 1 | . . . 1 . . . . Fabricators . | . . . . . . . . Repair Stations . | . . . . . . . . Recycling Units 3 | . 1 . 2 . . . . Reject 1 | . . . 1 . . . . Mask 1 | . . . 1 . . . . Tunnel 1 | . 1 . . . . . . Scanalyzers . | . . . . . . . . Garrison Access . | . . . . . . . . Data Cores Recovered . | . . . . . . . . Used . | . . . . . . . . Hacking Detections 26 | . 8 2 12 . . . 4 Full Trace Events 7 | . 1 2 2 . . . 2 Feedback Events . | . . . . . . . . Feedback Blocked . | . . . . . . . . Robot Schematics Acquired . | . . . . . . . . Robots Built . | . . . . . . . . Matter . | . . . . . . . . Time . | . . . . . . . . Total Robot Build Rating . | . . . . . . . . Part Schematics Acquired 6 | . . . 4 . . . 2 Parts Built . | . . . . . . . . Matter . | . . . . . . . . Time . | . . . . . . . . Total Part Build Rating . | . . . . . . . . Parts Repaired 7 | . 2 . 5 . . . . Time 206 | . 52 . 154 . . . . Parts Recycled . | . . . . . . . . Recycled Matter . | . . . . . . . . Retrieved Matter . | . . . . . . . . Retrieved Components 6 | . 3 . 3 . . . . Parts Scanalyzed 5 | . . . 3 . . . 2 Part Schematics Acquired 5 | . . . 3 . . . 2 Parts Damaged 1 | . . . . . . . 1 Bothacking | -11 -10 -10 -9 -9 -9 -8 -8 ------------ Run | Scr Mat Min Mat Min Exi Min Mat Used RIF Installer . | . . . . . . . . Robots Hacked . | . . . . . . . . Non-combat . | . . . . . . . . Combat . | . . . . . . . . Robot Hacks Applied . | . . . . . . . . Relay Couplers Released . | . . . . . . . . Robots Rewired . | . . . . . . . . Allies Hacked . | . . . . . . . . Hacks Repelled . | . . . . . . . . Allies | -11 -10 -10 -9 -9 -9 -8 -8 -------- Run | Scr Mat Min Mat Min Exi Min Mat Total Allies 5 | . 1 3 1 . . . . Largest Group 4 | . 1 4 4 1 . . . Highest-Rated Group 50 | . 10 50 50 10 . . . Highest-Rated Ally 16 | . 10 16 16 10 . . . Total Orders 6 | . . 2 4 . . . . STAY 3 | . . 1 2 . . . . FOLLOW 3 | . . 1 2 . . . . Ally Attacks 90 | . . . 90 . . . . Total Damage 1008 | . . . 1008 . . . . Kills 15 | . . . 15 . . . . Allies Corrupted . | . . . . . . . . Allies Melted . | . . . . . . . . Intel | -11 -10 -10 -9 -9 -9 -8 -8 ------- Run | Scr Mat Min Mat Min Exi Min Mat Robot Analysis Total 6 | . 2 1 3 . . . . Derelict Logs Recovered 4 | . . 2 . 2 . . . Drone Launches . | . . . . . . . . Drone Recoveries . | . . . . . . . . Exploration | -11 -10 -10 -9 -9 -9 -8 -8 ------------- Run | Scr Mat Min Mat Min Exi Min Mat Turns Passed 12076 | 160 1386 1409 3056 992 3157 975 941 Spaces Moved 5532 | 76 708 644 1362 470 1423 520 329 Core 21 | 21 . . . . . . . Treads 3849 | 55 708 512 1046 470 1058 . . Legs 1362 | . . 132 16 . 365 520 329 Wheels 300 | . . . 300 . . . . Hover . | . . . . . . . . Flight . | . . . . . . . . Fastest Speed 50 | 50 160 180 120 200 130 170 170 Average Speed 183 | 133 160 187 182 200 196 170 187 Slowest Speed 260 | 160 180 220 210 200 260 170 210 Overloaded Moves . | . . . . . . . . Propulsion Burnouts . | . . . . . . . . Robots Hopped . | . . . . . . . . Cave-ins Triggered . | . . . . . . . . Exploration Rate (%) 75 | 4 98 98 89 92 90 99 31 Regions Visited 7 Branch Regions 4 Pre-discovered Areas 3 | . 1 1 . . 1 . . Known Exits Taken 6 | . 1 1 1 1 1 1 . Unknown Exits Taken 1 | 1 . . . . . . . Scrap Searched 7 | . . 2 . 3 . 2 . Spaces Dug 7 | . 4 1 1 . . 1 . Terrain Destroyed 117 | . 4 11 32 . . 67 3 Melee . | . . . . . . . . Projectile 18 | . 4 2 1 . . 8 3 AOE 99 | . . 9 31 . . 59 . Terrain Rammed . | . . . . . . . . Walls Destroyed . | . . . . . . . . Machines Disabled . | . . . . . . . . Actions | -11 -10 -10 -9 -9 -9 -8 -8 --------- Run | Scr Mat Min Mat Min Exi Min Mat Total 6733 | 106 864 754 1770 502 1673 563 501 Wait 336 | . 64 25 167 1 23 3 53 Move 5525 | 75 707 643 1361 469 1422 519 329 Hop . | . . . . . . . . Pick Up 152 | 9 14 13 40 7 59 2 8 Fast Attach 29 | 3 4 2 9 1 9 . 1 Attach 34 | 4 1 1 7 3 11 1 6 Detach 23 | . 3 1 6 . 11 . 2 Swap 64 | . 11 6 27 2 6 7 5 Drop 126 | . 10 9 54 7 38 2 6 Fire 412 | 15 50 54 98 12 66 29 88 Melee 24 | . . . . . 24 . . Ram . | . . . . . . . . Kick 3 | . . . . . . . 3 Crush 1 | . . . 1 . . . . Escape Stasis . | . . . . . . . . Rewire . | . . . . . . . . Trap 4 | . . . . . 4 . . Miscellaneous . | . . . . . . . . Route ------- -11/Scrapyard -10/Materials (discovered 4 exits: *Mat x3 / *Min) -10/Mines (discovered 2 exits: *Mat x2) -9/Materials (discovered 5 exits: *Mat x3 / *Min x2) -9/Mines (discovered 3 exits: *Mat x2 / *Exi) -9/Exiles (discovered 2 exits: *Min x2) -8/Mines (discovered 2 exits: *Mat x2) -8/Materials History --------- Turn | Location | Event 28 | -11/Scrapyard | Discovered new exit (range 15) 161 | -11/Scrapyard | Entered Materials 209 | -10/Materials | Discovered new exit (range 12) 306 | -10/Materials | Build established: Mutant 379 | -10/Materials | Identified exit to Materials 563 | -10/Materials | Discovered new exit (range 16) 600 | -10/Materials | Identified exit to Mines 836 | -10/Materials | Discovered exit to Materials (range 16) 871 | -10/Materials | Central database locked down 1152 | -10/Materials | Discovered exit to Materials (range 15) 1308 | -10/Materials | Repaired Lgt. Treads 1335 | -10/Materials | Repaired Assault Rifle 1547 | -10/Materials | Entered Mines 1547 | -10/Mines | Accompanied by 1 ally 1756 | -10/Mines | Found a damaged Exp. Sensor Array with a note attached 1759 | -10/Mines | Found Prototype Device 1778 | -10/Mines | Discovered exit to Materials (range 12) 1982 | -10/Mines | Learned location of Zion (-6) 2199 | -10/Mines | Learned Materials garrison access intel 2268 | -10/Mines | Central database locked down 2699 | -10/Mines | Discovered exit to Materials (range 10) 2803 | -10/Mines | Build established: Hauler-Mutant 2804 | -10/Mines | Assisted by bots powering up and referring to "LRC-V3" 2956 | -10/Mines | Entered Materials 2956 | -9/Materials | Accompanied by 4 allies 2956 | -9/Materials | Evolved 2 slots: Utility x2 3075 | -9/Materials | Discovered new exit (range 16) 3126 | -9/Materials | Identified Exp. Sensor Array 3221 | -9/Materials | Discovered new exit (range 7) 3242 | -9/Materials | Identified exit to Materials 3313 | -9/Materials | Identified exit to Mines 4078 | -9/Materials | Discovered exit to Materials (range 8) 4379 | -9/Materials | Repaired Hcp. Storage Unit 4426 | -9/Materials | Repaired Hvy. Assault Rifle 4554 | -9/Materials | Discovered exit to Mines (range 12) 4806 | -9/Materials | Discovered exit to Materials (range 7) 5407 | -9/Materials | Repaired Hrd. Light Armor Plating 5441 | -9/Materials | Repaired Hvy. Assault Rifle 5474 | -9/Materials | Repaired Hvy. Assault Rifle? 6012 | -9/Materials | Entered Mines 6012 | -9/Mines | Accompanied by 1 ally 6136 | -9/Mines | Discovered exit to Materials (range 15) 6169 | -9/Mines | Found the Drone Emporium 6192 | -9/Mines | Found Prototype Device 6356 | -9/Mines | Learned Materials garrison access intel 6389 | -9/Mines | Assembled infested the area 6760 | -9/Mines | Found a hidden stash of uninstalled traps 6878 | -9/Mines | Discovered exit to Materials (range 11) 6888 | -9/Mines | Deemed a non-threat by the Exiles lab entrance 6888 | -9/Mines | Discovered new exit (range 5) 6924 | -9/Mines | Learned location of 1 exit from Lower Caves 6937 | -9/Mines | Received a Rocket Launcher from a helpful Derelict 7003 | -9/Mines | Identified exit to Exiles 7004 | -9/Mines | Entered Exiles 7034 | -9/Exiles | Discovered new exit (range 14) 7058 | -9/Exiles | Identified exit to Mines 7103 | -9/Exiles | Met 8R-AWN 7133 | -9/Exiles | Met EX-HEX 7240 | -9/Exiles | Met EX-DEC 7507 | -9/Exiles | Met EX-BIN 7538 | -9/Exiles | Aligned with FarCom system 7540 | -9/Exiles | Given EX-Vault access code 7591 | -9/Exiles | Opened EX-Vault 7609 | -9/Exiles | Found PSU Rigger 7614 | -9/Exiles | Found Longsword +1 7622 | -9/Exiles | Found Potential Leg 7625 | -9/Exiles | Found Potential Leg 7676 | -9/Exiles | Warned to stay clear of 0b10 Research branches 8123 | -9/Exiles | Visited The Gauntlet 8341 | -9/Exiles | Discovered exit to Mines (range 11) 8371 | -9/Exiles | Identified Decoy Drone Bay 8469 | -9/Exiles | Attacked by the Exiles 8492 | -9/Exiles | Core integrity fell below 50% 8925 | -9/Exiles | Destroyed EX-DEC 8953 | -9/Exiles | Destroyed EX-HEX 8976 | -9/Exiles | Destroyed EX-BIN 9028 | -9/Exiles | Found Prototype Device 9028 | -9/Exiles | Identified System Purifier 9077 | -9/Exiles | Found Deploy-a-Sentry 9495 | -9/Exiles | Destroyed 8R-AWN 9503 | -9/Exiles | Found Prototype Device 9503 | -9/Exiles | Identified AS-neutralizer No. 17b 9523 | -9/Exiles | Found Prototype Ballistic Gun 9552 | -9/Exiles | Found Prototype Processor 9790 | -9/Exiles | Found Prototype Ballistic Gun 10161 | -9/Exiles | Stole three prototypes: Potential Leg, Deploy-a-Sentry, Longsword +1 10161 | -9/Exiles | Entered Mines 10565 | -8/Mines | Discovered exit to Materials (range 9) 10844 | -8/Mines | Identified 8R-AWN's Boregun (x2) 11078 | -8/Mines | Discovered exit to Materials (range 10) 11136 | -8/Mines | Entered Materials 11136 | -8/Materials | Evolved 2 slots: Utility x2 11137 | -8/Materials | Loaded intel: 1 garrison access location 11199 | -8/Materials | Identified Exp. Targeting Computer 12077 | -8/Materials | Self-destructed Last Messages --------------- 12016_ K-01 Serf collects debris. 12017_ Acquired 44 matter. 12018_ W-25 Informer sends out distress signal. 12021_ K-01 Serf collects debris. 12024_ Y-45 Defender destroyed. 12026_ K-01 Serf cleans the Terminal. 12033_ K-01 Serf collects debris. 12039_ Connecting with Terminal... 12039_ ALERT: Suspicious activity at Terminal M011. Dispatching Investigation squad. 12050_ R-06 Scavenger collects Imp. Heat Sink. 12053_ R-06 Scavenger collects Aluminum Leg. 12059_ K-01 Serf cleans the Terminal. 12059_ Hvy. Assault Rifle destroyed. 12062_ Acquired 60 matter. 12064_ U-05 Engineer destroyed. 12068_ K-01 Serf collects debris. 12075_ G-47 Trooper destroyed. 12076_ K-01 Serf collects debris. 12076_ Humpback destroyed. Map ----- +----------------------------------------------------+ | ???????????????????????# %* #???# ????????? | | ???????????????????????# = #???###????????? | | ???????????????????????# #??????????????? | | ???????????????????????# *########??????????????? | | ?????????????????????### = #?????????????????????? | | ?????????????????????# # ! ########??????????????? | | ??????????????????????## # T #??????????????? | | ????????????????????#### # #??????????????? | | ???????????????????##!! # """ !#??????????????? | | ???????????????????#! # """ #??????????????? | | ???????????????????#! /!""" #??????????????? | | ???????????????????#! #=! #??????????????? | | ???????????????????#! % ###########T??????????? | | ???????????????????##!! ^ r^!! ?????????? | | ????????????????????#### ^= ?????????? | | ?????????????????????### "" !!^= !?????????? | | ?????????????????????#"" """ ^ ??????????? | | ?????????????????????#"" ^" " !!?????????? | | ?????????????????????#"T ^ ^ !!?????????? | | ?????????????????????#"" !!?????????? | | ?????????????????????#"" ?????????? | | ?????????????????????###*!! ! ?????????? | | ???????????????????????#![[= ?????????? | | ???????????????????????#!=*###T####"T"#??????????? | | ???????????????????????#!!*#??##?????????????????? | | ???????????????????????#t@k#?????????????????????? | | ???????????????????????#%!%#?????????????????????? | | ???????????????????????#/!!#?????????????????????? | | ???????????????????????!!!g|?????????????????????? | | ?????????????????????? &=! #????????????????????? | | ????????????????????? t ! +????????????????????? | | ????????????????????? # ???????????????????? | | ????????????????????###] #!???????????????????? | | ??????????????????????## ##? ??????????????????? | | ???????????????????????# #??#??????????????????? | | ???????????????????????# #?????????????????????? | | ???????????????????????# #?????????????????????? | | ???????????????????????# ?????????????????????? | | ???????????????????????? #?????????????????????? | | ???????????????????????? ??????????????????????? | | ????????????????????????#+#??????????????????????? | | ?????????????????????????????????????????????????? | | ?????????????????????????????????????????????????? | | ?????????????????????????????????????????????????? | | ?????????????????????????????????????????????????? | | ?????????????????????????????????????????????????? | | ?????????????????????????????????????????????????? | | ?????????????????????????????????????????????????? | | ?????????????????????????????????????????????????? | | ?????????????????????????????????????????????????? | +----------------------------------------------------+ Best States ------------- Heat Dissipation 31 Energy Generation 19 Energy Capacity 280 Matter Stores 490 Matter Capacity 500 Sight Range 16 Robot Scan Range 30 Terrain Scan Density 10 Additional Mass Support 12 Armor Coverage 375 Power Shielding 33 Propulsion Shielding 33 Evasion (%) 50 Recoil Reduction 2 Item Schematics ----------------- Exp. Sensor Array | -9/Materials | Scanalyzed Hcp. Matter Pod | -9/Materials | Scanalyzed Hcp. Storage Unit | -9/Materials | Hacked Imp. Flight Unit | -9/Materials | Scanalyzed Exp. Targeting Computer | -8/Materials | Scanalyzed Hacking Suite | -8/Materials | Scanalyzed Robot Schematics ------------------ None Fabricated ------------ Nothing Alien Tech Used ----------------- None Achievements -------------- None Challenges ------------ None Game ------ Seed TargetingLargeKinecellerator Manual? 0 Play Time 01:09:25 Cumulative 191.5 hours Start 2021.01.10 @ 09:39:52 End 2021.01.10 @ 10:54:42 Sessions 1 Manual Loads 0 Difficulty Rogue Special Mode None Game No. 177 Rogue 177 Adventurer 0 Explorer 0 Win Type - Total 0 Types 0/0/0/0/0/0/0/0/0 Lore% 59 Gallery% 68 Achievement% 54 Wizard Run 0 Options --------- ASCII 0 Keyboard 1 Movement Numpad Keybinds 0 Fullscreen 1 Font 12/Terminus Map View 83x54 Tactical HUD 1 Map Filters NONE Filters NONE Steam 1 RUN: d7169fb6-7d2f-4a46-9bc4-0cc68b463e16